bitfinex/quotes_ETHUSD_20241204
["timestamp","ask_amount","ask_price","bid_price","bid_amount"]
[1733334260894,1.6136,3801.5,3800.4,2.63125]
[1733334261092,1.6136,3801.5,3800.8,2.63096]
[1733334261821,1.6136,3801.5,3800.5,2.63118]
[1733334261974,0.47756378,3801.4,3800.2,1.5101]
[1733334262173,0.47756378,3801.4,3800.3,2.6313]
[1733334262415,0.47756378,3801.4,3800.4,2.63127]
[1733334262615,3.10819378,3801.4,3800.0,3.0]
[1733334262776,3.1394393,3801.4,3800.3,2.63136]
[1733334262980,8.79,3801.2,3800.0,2.63155]
[1733334263307,8.79,3801.2,3799.4,1.5808]
[1733334263308,1.64644552,3801.1,3800.2,2.63143]
[1733334264113,0.52760809,3800.8,3800.2,2.63143]
[1733334264677,0.52760809,3800.8,3800.0,2.63157]
[1733334265018,0.52760809,3800.8,3800.1,2.6315]
[1733334265215,0.74501345,3800.8,3800.2,2.63143]
[1733334265779,0.74501345,3800.8,3799.7,2.63178]
[1733334266181,0.74501345,3800.8,3800.2,2.63143]
[1733334266806,8.82124552,3800.7,3799.4,1.5808]
[1733334267014,1.5905,3800.5,3800.0,2.63156]
[1733334267183,1.5905,3800.5,3799.4,1.5808]
[1733334267184,0.99823411,3800.5,3799.4,4.5808]
[1733334267567,0.99823411,3800.5,3800.1,2.63148]
[1733334267880,0.99823411,3800.5,3800.2,2.63143]
[1733334268626,0.99823411,3800.5,3800.3,2.63137]
[1733334268782,0.99823411,3800.5,3799.8,2.63171]
[1733334268783,0.52323943,3800.9,3799.5,1.021283]
[1733334268988,8.79,3801.2,3800.6,2.63115]
[1733334269185,9.72184657,3801.2,3800.7,2.63107]
[1733334269389,8.79,3802.1,3800.4,1.5901]
[1733334269692,8.79,3802.5,3800.9,2.6309]
[1733334269898,8.79,3802.5,3801.5,2.63047]
[1733334270283,0.52077684,3802.1,3801.3,2.63065]
[1733334270480,0.52077684,3802.1,3800.5,2.63123]
[1733334270734,0.52077684,3802.1,3801.3,2.63061]
[1733334271353,0.52077684,3802.1,3801.4,2.63058]
[1733334271498,0.52077684,3802.1,3801.6,2.63045]
[1733334271697,1.6333,3802.4,3800.9,3.0]
[1733334272000,10.4233,3802.4,3801.7,2.63036]
[1733334272220,0.52941083,3802.2,3801.7,2.63036]
[1733334272697,0.52941083,3802.2,3801.2,1.5901]
[1733334272924,0.03124552,3802.1,3800.9,3.0]
[1733334273125,1.6333,3802.0,3800.8,1.5901]
[1733334273329,1.6333,3802.0,3801.2,2.63068]
[1733334273528,0.21939563,3801.9,3801.2,2.63068]
[1733334273702,0.03124552,3801.8,3801.2,2.63068]
[1733334273911,0.21939563,3801.9,3801.2,2.63068]
[1733334274310,1.6333,3802.0,3801.3,0.02630552]
[1733334274535,1.6333,3802.0,3800.8,1.5901]
[1733334274845,1.6333,3802.0,3801.5,2.63053]
[1733334275137,26.1003975,3803.1,3800.8,1.5901]
[1733334275138,1.533,3802.3,3800.8,1.5901]
[1733334275336,1.533,3802.3,3801.9,2.63023]
[1733334276039,1.533,3802.3,3801.9,2.63025]
[1733334276210,1.6863,3802.3,3800.8,1.5901]
[1733334276420,0.03124552,3802.2,3801.3,2.63061]
[1733334276603,1.6114,3802.0,3800.4,1.5039]
[1733334276802,1.6114,3801.8,3800.7,2.63108]
[1733334276998,0.53879389,3801.4,3800.7,2.63108]
[1733334277203,1.6114,3801.3,3800.5,2.63123]
[1733334277424,0.24626491,3801.2,3800.5,2.63123]
[1733334277644,0.21501939,3801.2,3800.5,2.63123]
[1733334278251,0.21501939,3801.2,3800.2,2.63141]
[1733334278449,9.00501939,3801.2,3799.7,1.5425]
[1733334278605,9.00501939,3801.2,3800.0,2.63157]
[1733334278606,0.03124552,3801.1,3800.0,2.63157]
[1733334278814,1.38170988,3801.1,3800.4,2.63127]
[1733334279164,1.38170988,3801.1,3799.7,1.5425]
[1733334279165,1.4129554,3801.1,3799.7,1.5425]
[1733334279341,1.38170988,3801.1,3799.7,4.17425]
[1733334279516,1.38170988,3801.1,3800.1,2.63145]
[1733334279717,1.38170988,3801.1,3799.9,2.63164]
[1733334279938,1.19981293,3801.0,3800.1,2.63146]
[1733334280213,1.598,3800.9,3800.6,2.63114]
[1733334280918,1.598,3801.3,3800.8,2.63102]
[1733334281153,1.598,3801.3,3799.7,1.5425]
[1733334281154,1.598,3801.3,3800.9,2.63094]
[1733334281364,1.598,3801.3,3801.1,2.63075]
[1733334281652,1.598,3801.7,3801.4,2.6306]
[1733334282363,10.3147,3802.5,3800.6,2.65744487]
[1733334282516,1.5247,3802.5,3801.9,2.63025]
[1733334282716,1.5247,3802.5,3802.0,2.63015]
[1733334282943,2.0423452,3802.5,3802.0,2.63015]
[1733334283375,2.0423452,3802.5,3802.1,2.63011]
[1733334283511,2.0423452,3802.5,3801.6,2.63042]
[1733334283512,2.0423452,3802.5,3801.9,2.63026]
[1733334283715,2.24970427,3802.5,3801.8,2.63032]
[1733334283927,2.24970427,3802.5,3802.0,2.63017]
[1733334284139,2.24970427,3802.5,3801.5,2.63054]
[1733334284314,1.5996,3802.1,3801.2,2.63074]
[1733334284532,1.5996,3801.9,3801.1,2.63081]
[1733334285239,1.5996,3801.9,3800.7,2.63105]
[1733334285453,1.5996,3801.9,3800.4,4.22423]
[1733334285614,0.03124552,3801.8,3800.8,2.63096]
[1733334285818,1.5051,3801.3,3800.7,2.63108]
[1733334286014,9.70806501,3801.3,3800.4,2.63129]
[1733334286219,9.67681949,3801.3,3800.5,2.63117]
[1733334286434,9.67681949,3801.3,3800.3,1.6527]
[1733334286435,9.47268703,3801.3,3800.3,1.6527]
[1733334286675,8.79,3802.1,3800.5,2.63123]
[1733334286830,0.51617147,3801.9,3801.4,2.63057]
[1733334287450,0.51617147,3801.9,3801.4,2.63054]
[1733334288632,0.51617147,3801.9,3800.3,1.6527]
[1733334288835,0.51617147,3801.9,3800.4,0.75546397]
[1733334289054,1.5217,3801.8,3801.3,2.63066]
[1733334289356,1.5217,3801.8,3800.4,2.63126]
[1733334289663,0.03124552,3801.7,3800.7,2.63102]
[1733334290025,0.03124552,3801.7,3800.8,2.63101]
[1733334290266,0.4699377,3801.6,3800.8,2.63101]
[1733334290565,0.03124552,3801.5,3800.8,2.63101]
[1733334290748,1.67784552,3801.5,3800.3,1.6527]
[1733334290949,0.03124552,3801.4,3800.5,2.63119]
[1733334291335,0.03124552,3801.4,3800.0,4.15253]
[1733334291336,0.03124552,3801.4,3800.2,2.6314]
[1733334291663,1.6466,3802.0,3801.2,1.521]
[1733334292163,1.6466,3802.0,3801.3,2.63067]
[1733334292371,1.6466,3802.0,3801.4,2.6306]
[1733334292662,1.6466,3802.0,3801.2,2.63073]
[1733334292838,8.82124552,3801.9,3800.5,1.5293]
[1733334293159,1.5678,3801.7,3801.1,2.63081]
[1733334293462,1.5678,3801.7,3800.9,2.63089]
[1733334293633,1.5678,3801.7,3800.3,4.5293]
[1733334293838,1.5678,3801.7,3800.6,2.63116]
[1733334294039,1.5678,3801.7,3801.4,2.63055]
[1733334294435,9.30669332,3802.1,3800.3,1.5293]
[1733334294436,1.656,3802.0,3801.6,2.63046]
[1733334294724,1.656,3802.0,3801.8,2.63027]
[1733334294923,1.656,3802.0,3801.9,2.63026]
[1733334295159,0.51821951,3802.4,3801.9,0.263026]
[1733334295359,23.4709075,3803.1,3803.0,2.6295]
[1733334297069,23.4709075,3803.1,3803.0,2.98010438]
[1733334297605,22.87918188,3803.1,3803.0,2.98010438]
[1733334298563,22.87918188,3803.1,3803.0,2.6295]
[1733334298862,21.56446188,3803.1,3803.0,2.6295]
[1733334299024,21.56446188,3803.1,3803.0,3.307166]
[1733334299729,2.7578602,3803.1,3803.0,7.881266]
[1733334299930,23.31,3803.7,3803.0,7.881266]
[1733334299931,23.31,3803.7,3803.6,2.62908]
[1733334300149,16.73745,3803.7,3803.6,6.17908]
[1733334300351,16.73745,3803.7,3803.6,7.43255581]
[1733334300562,16.73745,3803.7,3803.6,8.95855581]
[1733334301265,10.1649,3803.7,3803.6,8.95855581]
[1733334301842,10.1649,3803.7,3803.6,8.60795143]
[1733334302047,7.53588,3803.7,3803.6,9.23083344]
[1733334302254,3.59235,3803.7,3803.6,9.23083344]
[1733334302871,3.59235,3803.7,3803.6,8.05795143]
[1733334303044,3.59235,3803.7,3803.2,1.6119]
[1733334303242,3.59235,3803.7,3803.4,2.62921]
[1733334303886,3.59235,3803.7,3802.8,1.6645]
[1733334304193,3.59235,3803.7,3803.1,2.6294]
[1733334304693,3.59235,3803.7,3802.8,1.6645]
[1733334304983,3.59235,3803.7,3803.5,2.6291]
[1733334305391,3.59235,3803.7,3803.3,2.62925]
[1733334305572,3.59235,3803.7,3803.5,2.62914]
[1733334305956,3.59235,3803.7,3803.3,3.0]
[1733334306159,3.59235,3803.7,3803.0,2.6295]
[1733334306467,3.59235,3803.7,3803.5,2.62914]
[1733334307771,3.59235,3803.7,3802.8,2.18710841]
[1733334308114,3.59235,3803.7,3802.9,2.62957]
[1733334308891,3.59235,3803.7,3802.3,1.6379]
[1733334309057,3.59235,3803.7,3802.6,2.62975]
[1733334309261,0.509465,3803.6,3802.6,2.62975]
[1733334309561,0.509465,3803.6,3802.3,1.6379]
[1733334310294,0.509465,3803.6,3802.6,2.62977]
[1733334310493,3.59235,3803.7,3802.3,1.6379]
[1733334310689,3.59235,3803.7,3803.1,2.62938]
[1733334310891,3.59235,3803.7,3803.2,0.55]
[1733334311068,2.27784,3803.7,3803.6,3.17908]
[1733334311250,2.27784,3803.7,3803.6,6.17908]
[1733334311251,0.14177301,3803.7,3803.6,6.17908]
[1733334311453,0.14177301,3803.7,3803.6,7.211707]
[1733334312464,0.01,3804.5,3803.7,3.55]
[1733334312699,0.01,3804.5,3804.3,0.55]
[1733334313070,0.01,3804.5,3804.0,0.55]
[1733334313254,0.01,3804.5,3804.1,2.62872]
[1733334313969,0.01,3804.5,3804.2,2.62865]
[1733334314313,0.01,3804.5,3803.8,0.55]
[1733334314454,0.01,3804.5,3804.4,0.55]
[1733334314905,0.01,3804.5,3804.4,8.080685]
[1733334315420,1e-05,3804.5,3804.4,8.44712272]
[1733334315557,2.03302112,3805.7,3805.6,2.6277]
[1733334315757,2.03302112,3805.7,3805.6,0.55]
[1733334316156,2.03302112,3805.7,3805.3,3.54434772]
[1733334316403,2.03302112,3805.7,3805.6,0.36643772]
[1733334316972,2.03302112,3805.7,3805.3,0.55]
[1733334316973,3.85502323,3805.7,3805.3,0.55]
[1733334317202,3.85502323,3805.7,3805.3,0.91643772]
[1733334317386,2.03302112,3805.7,3805.5,3.17774]
[1733334317597,2.03302112,3805.7,3805.6,3.54413772]
[1733334318156,2.03302112,3805.7,3805.6,0.91643772]
[1733334318505,2.03302112,3805.7,3805.6,3.54413772]
[1733334319077,2.03302112,3805.7,3805.4,0.55]
[1733334319397,1.6187,3805.6,3805.1,0.55]
[1733334319604,1.6187,3805.6,3805.3,0.55]
[1733334319803,1.6187,3805.6,3805.1,0.55]
[1733334320108,2.03302112,3805.7,3805.6,0.55]
[1733334320306,2.03302112,3805.7,3805.6,3.1777]
[1733334320809,2.03302112,3805.7,3805.5,0.55]
[1733334321025,2.03302112,3805.7,3805.3,0.55]
[1733334321525,2.03302112,3805.7,3805.5,0.55]
[1733334321675,2.03302112,3805.7,3805.6,3.1777]
[1733334322169,2.03302112,3805.7,3805.6,0.55]
[1733334322371,3.64812112,3805.7,3805.2,2.62797]
[1733334322601,3.64812112,3805.7,3805.3,3.17788]
[1733334322808,3.64812112,3805.7,3805.1,0.55]
[1733334322809,4.01293323,3805.7,3805.1,0.55]
[1733334322976,3.64812112,3805.7,3805.1,0.55]
[1733334323306,2.03302112,3805.7,3805.3,0.55]
[1733334323518,2.03302112,3805.7,3805.6,3.1777]
[1733334323810,2.03302112,3805.7,3805.6,3.55913772]
[1733334323983,1.21180048,3805.7,3805.6,3.55913772]
[1733334324185,1.21180048,3805.7,3805.6,4.17784249]
[1733334324605,1.21180048,3805.7,3805.6,5.39700477]
[1733334324806,4.8e-07,3805.7,3805.6,8.39700477]
[1733334325119,4.8e-07,3805.7,3805.6,7.7783]
[1733334325283,4.8e-07,3805.7,3805.6,2.6277]
[1733334325485,4.8e-07,3805.7,3805.6,5.6277]
[1733334325677,4.8e-07,3805.7,3805.2,1.6094]
[1733334325678,4.8e-07,3805.7,3805.4,3.0]
[1733334326021,4.8e-07,3805.7,3805.4,2.62782]
[1733334326198,4.8e-07,3805.7,3805.4,3.051542]
[1733334326506,4.8e-07,3805.7,3805.6,2.6277]
[1733334327111,4.8e-07,3805.7,3805.6,3.1777]
[1733334327612,4.8e-07,3805.7,3805.6,0.55]
[1733334327775,1.56100048,3805.7,3804.8,1.6476]
[1733334328209,1.56100048,3805.7,3805.1,2.62802]
[1733334328573,1.56100048,3805.7,3804.8,1.6476]
[1733334328781,1.71710053,3805.7,3805.0,2.6281]
[1733334328979,1.71710053,3805.7,3804.9,0.55]
[1733334329183,1.71710053,3805.7,3804.9,3.0]
[1733334329720,1.71710053,3805.7,3804.1,1.5646]
[1733334330014,0.03124552,3805.6,3803.8,1.5646]
[1733334330227,4.8e-07,3805.7,3805.1,1.5646]
[1733334330378,4.8e-07,3805.7,3805.4,2.62781]
[1733334330573,4.8e-07,3805.7,3805.6,2.6277]
[1733334331278,4.8e-07,3805.7,3805.6,3.1777]
[1733334331483,4.8e-07,3805.7,3805.6,3.758256]
[1733334332626,4.8e-07,3805.7,3805.6,1.130556]
[1733334332773,4.8e-07,3805.7,3805.3,3.0]
[1733334333112,1.5366,3805.6,3804.3,2.6286]
[1733334333315,1.5366,3805.6,3804.2,1.5905]
[1733334333614,0.47140409,3805.5,3804.2,2.01505776]
[1733334333819,4.8e-07,3805.7,3804.8,1.541]
[1733334333974,4.8e-07,3805.7,3805.6,2.6277]
[1733334334409,4.8e-07,3805.7,3805.1,2.628]
[1733334334711,4.8e-07,3805.7,3805.4,2.62781]
[1733334334875,4.8e-07,3805.7,3805.2,2.62797]
[1733334335077,4.8e-07,3805.7,3805.3,2.6279]
[1733334335777,4.8e-07,3805.7,3805.4,2.62783]
[1733334336084,4.8e-07,3805.7,3805.2,2.62797]
[1733334336379,4.8e-07,3805.7,3805.3,2.62785]
[1733334336754,4.8e-07,3805.7,3805.2,2.62797]
[1733334337274,4.8e-07,3805.7,3805.3,2.6279]
[1733334337438,4.8e-07,3805.7,3805.1,2.62803]
[1733334337863,4.8e-07,3805.7,3805.2,2.62797]
[1733334338051,1.5639,3805.6,3804.4,1.6313]
[1733334338252,1.5639,3805.6,3805.0,2.62809]
[1733334338253,1.98304205,3805.6,3805.0,2.62809]
[1733334338454,1.5639,3805.6,3804.8,0.55]
[1733334338774,1.5639,3805.6,3805.3,2.62785]
[1733334339189,1.5639,3805.6,3804.8,0.55]
[1733334339343,4.8e-07,3805.7,3804.8,0.55]
[1733334339544,4.8e-07,3805.7,3804.5,3.20466646]
[1733334339545,4.8e-07,3805.7,3805.5,2.62775]
[1733334340153,4.8e-07,3805.7,3805.6,2.6277]
[1733334340357,1.6368,3806.1,3805.8,2.62755]
[1733334340684,0.1839022,3806.3,3805.2,3.55]
[1733334340989,0.1839022,3806.3,3805.6,2.62766]
[1733334341189,0.1839022,3806.3,3805.3,0.617805]
[1733334341494,0.1839022,3806.3,3805.7,2.62757]
[1733334341671,0.1839022,3806.3,3805.0,0.5762723]
[1733334341980,0.1839022,3806.3,3805.8,2.6275]
[1733334342367,0.1839022,3806.3,3805.7,2.62763]
[1733334342557,0.1839022,3806.3,3805.6,2.6277]
[1733334342754,0.1839022,3806.3,3805.1,5.2561]
[1733334343092,0.1839022,3806.3,3805.3,2.62789]
[1733334343386,0.1839022,3806.3,3805.6,2.62769]
[1733334344078,0.1839022,3806.3,3805.2,1.693424]
[1733334344244,0.1839022,3806.3,3805.1,3.55]
[1733334344449,0.1839022,3806.3,3806.1,2.62735]
[1733334344645,0.1839022,3806.3,3805.8,2.62753]
[1733334344909,0.1839022,3806.3,3805.4,2.62784]
[1733334345066,0.1839022,3806.3,3805.8,2.62756]
[1733334345389,0.1839022,3806.3,3804.8,1.6553]
[1733334345390,0.69238242,3806.3,3804.8,1.6553]
[1733334345592,1.5742,3806.2,3805.1,3.0]
[1733334345891,1.5742,3806.2,3806.1,2.62736]
[1733334346678,1.5742,3806.2,3805.7,0.47704329]
[1733334346850,1.5742,3806.2,3806.0,2.6274]
[1733334347050,1.5742,3806.2,3806.1,2.62736]
[1733334347248,0.1839022,3806.3,3806.2,2.62729]
[1733334348600,0.1839022,3806.3,3806.2,3.17729]
[1733334348601,2.2e-06,3806.3,3806.2,3.17729]
[1733334348895,6.66,3806.7,3806.2,3.17729]
[1733334348896,0.0371022,3806.5,3806.4,2.62715]
[1733334349050,6.66,3806.7,3806.6,6.44031]
[1733334349051,2.7196922,3806.7,3806.6,6.44031]
[1733334349255,1.9e-07,3806.7,3806.6,7.29005635]
[1733334349651,0.70320769,3806.9,3806.8,1.5999]
[1733334349849,0.70320769,3806.9,3806.8,7.80303351]
[1733334350051,1.6186,3810.0,3808.2,1.5999]
[1733334350251,10.4086,3809.8,3808.3,0.15999]
[1733334350482,10.4086,3809.8,3808.2,1.5999]
[1733334350483,10.4086,3809.8,3808.9,2.62539]
[1733334350666,10.4086,3809.8,3808.4,0.02625235]
[1733334350879,10.4086,3809.8,3809.0,2.62535]
[1733334351081,0.52037399,3809.6,3808.5,0.38143772]
[1733334351397,0.52862555,3810.0,3809.6,2.62488]
[1733334351596,1.7620075,3810.6,3809.7,2.62486]
[1733334351802,0.17620075,3810.5,3809.6,3.00636772]
[1733334352003,0.17620075,3810.5,3809.6,0.38143772]
[1733334352203,2.62449,3810.3,3809.0,0.38143772]
[1733334352505,0.03124552,3810.2,3808.7,0.36146338]
[1733334352707,0.53424923,3810.4,3808.8,0.57624851]
[1733334352987,1.12624575,3810.3,3809.1,2.62526]
[1733334353190,1.12624575,3810.3,3809.3,2.62513]
[1733334353490,0.53424923,3810.4,3809.4,0.39013005]
[1733334353899,0.53424923,3810.4,3809.6,2.62491]
[1733334354201,0.53424923,3810.4,3809.7,0.39013005]
[1733334354354,0.53424923,3810.4,3809.1,3.01537005]
[1733334354559,0.53424923,3810.4,3809.2,0.39013005]
[1733334354754,0.50967175,3810.3,3809.2,0.39013005]
[1733334354955,2.62454,3810.2,3809.2,0.39013005]
[1733334355155,0.50967175,3810.3,3809.2,0.39013005]
[1733334355459,0.50967175,3810.3,3808.9,0.39013005]
[1733334355653,2.6246,3810.1,3808.9,0.39013005]
[1733334355871,0.31655173,3810.0,3808.9,0.39013005]
[1733334356096,0.50967175,3810.3,3809.0,0.55]
[1733334356451,0.50967175,3810.3,3809.1,0.41637555]
[1733334356656,0.52810115,3809.9,3809.1,0.39013005]
[1733334356888,0.52810115,3809.9,3809.2,0.02624572]
[1733334357205,0.52810115,3809.9,3809.3,0.39013005]
[1733334357495,0.52810115,3809.9,3809.2,0.39013005]
[1733334358093,0.52810115,3809.9,3809.0,0.39013005]
[1733334358251,1.6554,3809.8,3809.0,0.39013005]
[1733334358451,1.6554,3809.8,3808.5,1.6053]
[1733334358710,2.84324012,3809.7,3807.6,1.6569]
[1733334358857,1.6554,3809.0,3807.6,1.6569]
[1733334359199,4.28076,3809.0,3807.6,4.28322]
[1733334359405,2.62543,3808.9,3807.6,1.6569]
[1733334359561,0.428083,3808.8,3806.6,1.21304635]
[1733334359755,8.79,3809.4,3807.9,2.62605]
[1733334359982,8.79,3809.4,3808.0,0.02625129]
[1733334360436,1.6309,3810.4,3808.1,2.00483005]
[1733334360607,1.6309,3810.4,3809.4,2.62507]
[1733334360608,0.52421535,3810.0,3809.4,2.62507]
[1733334360921,0.52421535,3810.0,3809.1,1.6147]
[1733334361227,0.52421535,3810.0,3809.1,0.424009]
[1733334361390,0.52421535,3810.0,3808.8,2.62548]
[1733334361593,0.52421535,3810.0,3808.7,1.6282]
[1733334361787,0.52421535,3810.0,3809.1,2.62522]
[1733334362118,0.52421535,3810.0,3809.2,0.02624723]
[1733334362420,0.52421535,3810.0,3809.0,2.62529]
[1733334362715,0.52421535,3810.0,3809.0,0.02624619]
[1733334362872,0.52421535,3810.0,3808.8,3.55]
[1733334363076,0.52421535,3810.0,3809.0,0.55]
[1733334363319,1.6309,3810.4,3809.0,0.57624506]
[1733334363532,1.6309,3810.4,3809.8,2.62477]
[1733334363821,0.1609075,3810.6,3809.9,2.62472]
[1733334364594,0.1609075,3810.6,3809.6,1.6082]
[1733334364821,0.1609075,3810.6,3809.7,0.423315]
[1733334365001,0.1609075,3810.6,3809.0,6.44264819]
[1733334365201,0.1609075,3810.6,3809.2,0.55]
[1733334365421,0.1609075,3810.6,3809.9,2.6247]
[1733334366294,0.1609075,3810.6,3809.4,0.55]
[1733334366531,0.1609075,3810.6,3809.7,2.62486]
[1733334366847,0.59028625,3810.6,3809.2,0.55]
[1733334367130,0.1609075,3810.6,3809.9,2.62473]
[1733334367332,0.1609075,3810.6,3809.9,2.62472]
[1733334368033,0.1609075,3810.6,3809.7,2.62486]
[1733334368233,0.1609075,3810.6,3809.5,0.02624109]
[1733334368539,0.25020927,3809.7,3809.6,0.81512711]
[1733334369408,0.25020927,3809.7,3809.6,2.62494]
[1733334370052,0.25020927,3809.7,3808.5,0.52923664]
[1733334370053,1.5063,3809.6,3808.5,0.52923664]
[1733334370195,2.62524,3809.2,3807.9,2.6261]
[1733334370411,1.5619,3808.8,3807.7,4.22034]
[1733334370635,1.5619,3808.8,3806.5,0.3]
[1733334370636,1.5619,3808.8,3807.3,1.65845485]
[1733334370845,1.5619,3809.2,3808.7,2.62549]
[1733334371019,1.5619,3809.2,3807.4,1.6322]
[1733334371223,0.25020927,3809.7,3807.4,1.6322]
[1733334371224,1.76970927,3809.7,3808.5,2.62569]
[1733334371545,1.76970927,3809.7,3809.0,2.62531]
[1733334371747,1.76970927,3809.7,3807.8,0.02624828]
[1733334371748,1.76970927,3809.7,3808.7,2.62552]
[1733334372059,1.76970927,3809.7,3809.0,2.6253]
[1733334372556,1.76970927,3809.7,3808.5,0.55]
[1733334372889,1.76970927,3809.7,3808.3,3.0]
[1733334373087,1.76970927,3809.7,3807.7,1.6277]
[1733334373088,0.17697093,3809.6,3808.0,3.0]
[1733334373384,0.17697093,3809.6,3808.1,2.65223205]
[1733334373590,0.17697093,3809.6,3808.4,2.62575]
[1733334373791,0.17697093,3809.6,3808.0,3.0]
[1733334373992,0.17697093,3809.6,3808.6,2.62562]
[1733334374189,0.45715602,3809.5,3808.0,3.0]
[1733334374347,0.45715602,3809.5,3808.2,2.6259]
[1733334374348,4.22602552,3809.4,3808.2,2.6259]
[1733334374687,4.22602552,3809.4,3807.8,0.51348555]
[1733334374688,2.62521,3809.3,3807.8,0.51348555]
[1733334374889,2.62521,3809.3,3806.7,2.97392804]
[1733334374890,0.03124552,3809.2,3807.1,4.26831]
[1733334375081,0.03124552,3809.2,3806.8,2.62681]
[1733334375082,1.5574,3808.5,3806.8,0.26402516]
[1733334375275,0.15574,3808.4,3806.6,2.62701]
[1733334375576,2.62591,3808.2,3807.1,2.62666]
[1733334375761,0.15574,3808.4,3806.7,2.62689]
[1733334375966,2.78151,3808.4,3807.2,2.62659]
[1733334376372,0.15574,3808.4,3807.3,2.62652]
[1733334376590,0.48661693,3808.3,3807.3,2.62652]
[1733334376784,0.48661693,3808.3,3806.9,2.6268]
[1733334377108,2.62622,3807.8,3806.5,2.62707]
[1733334377270,2.62622,3807.8,3806.1,1.5492]
[1733334377271,4.24856552,3807.7,3806.4,2.62711]
[1733334377477,4.24856552,3807.7,3806.5,0.0262659]
[1733334377478,0.42485655,3807.6,3806.5,0.0262659]
[1733334377703,0.42485655,3807.6,3806.7,2.62691]
[1733334377904,0.42485655,3807.6,3805.7,3.88301989]
[1733334377905,0.03124552,3807.5,3805.9,2.62744]
[1733334378106,1.591,3807.4,3806.3,2.6272]
[1733334378519,4.21748,3807.4,3806.1,2.62729]
[1733334378818,3.048298,3807.3,3805.7,0.47704329]
[1733334379119,2.62677,3807.0,3805.7,0.47704329]
[1733334379273,1.591,3806.7,3805.7,0.47704329]
[1733334380018,0.03124552,3806.9,3805.7,0.47704329]
[1733334380019,1.5763,3805.9,3805.7,0.47704329]
[1733334380180,0.420377,3805.8,3805.7,0.47704329]
[1733334380378,1.5763,3805.9,3805.7,0.47704329]
[1733334383124,1.60754552,3805.9,3805.7,0.47704329]
[1733334383624,4.17926,3805.8,3805.7,0.47704329]
[1733334383918,4.37926,3805.8,3805.7,0.47704329]
[1733334384136,4.41050552,3805.8,3805.7,0.47704329]
[1733334384331,6.04571264,3805.8,3805.7,0.47704329]
[1733334384503,6.01446712,3805.8,3805.7,0.47704329]
[1733334384891,2.62779,3805.5,3804.0,2.62879]
[1733334385094,1.58294552,3805.4,3804.0,2.62879]
[1733334385293,1.5517,3805.2,3803.3,2.62925]
[1733334385622,8.79,3804.8,3802.7,1.5833]
[1733334385949,1.6341,3804.6,3803.2,2.6293]
[1733334386235,1.6341,3804.3,3802.8,0.06010608]
[1733334386393,1.6341,3804.1,3803.1,2.62942]
[1733334386599,1.6341,3804.1,3802.8,0.06010608]
[1733334386795,1.07365552,3804.0,3802.8,0.06010608]
[1733334387016,1.07365552,3804.0,3803.0,2.6295]
[1733334387426,1.07365552,3804.0,3802.8,0.06010608]
[1733334387695,1.5954,3803.7,3802.8,0.06010608]
[1733334387926,0.03124552,3803.6,3802.8,0.06010608]
[1733334388127,1.5954,3803.4,3802.8,0.06010608]
[1733334388332,1.62664552,3803.4,3802.5,2.62982]
[1733334389125,10.3854,3803.4,3801.7,2.6304]
[1733334389342,10.3854,3803.4,3801.9,2.63026]
[1733334389543,10.3854,3803.4,3801.6,0.52088839]
[1733334389544,1.551,3803.3,3802.0,2.63014]
[1733334389745,1.551,3803.0,3801.7,2.63038]
[1733334390035,1.551,3803.0,3800.9,2.63095]
[1733334390036,8.79,3802.4,3800.5,2.63123]
[1733334390195,1.551,3802.1,3801.4,2.6306]
[1733334390402,1.551,3802.1,3800.2,1.604]
[1733334390403,0.03124552,3802.0,3800.4,2.6313]
[1733334390627,1.03722455,3801.9,3801.3,2.63064]
[1733334390847,1.57604552,3801.8,3800.8,2.63099]
[1733334391153,10.3348,3801.7,3799.4,0.02630992]
[1733334391298,1.5448,3801.7,3801.5,2.63052]
[1733334391711,1.5448,3801.7,3801.0,2.63088]
[1733334391895,1.5448,3801.7,3799.9,0.02630828]
[1733334392140,1.5448,3801.7,3801.5,2.6305]
[1733334392299,2.57828,3801.7,3801.0,2.63086]
[1733334392500,0.03124552,3801.6,3800.5,2.6312]
[1733334392725,0.03124552,3801.6,3798.7,2.63247]
[1733334392726,10.3481,3801.4,3800.8,2.63101]
[1733334392928,8.79,3801.0,3799.1,0.51862663]
[1733334393242,8.82124552,3800.9,3800.2,2.6314]
[1733334393445,1.634,3800.6,3799.9,2.63164]
[1733334393614,8.22917869,3800.5,3799.7,2.63176]
[1733334393816,1.634,3800.3,3799.0,0.51541809]
[1733334394012,1.634,3800.3,3798.7,2.63247]
[1733334394432,1.634,3800.3,3798.8,2.63241]
[1733334394744,1.634,3800.3,3799.0,2.63227]
[1733334394914,1.634,3800.3,3800.1,2.63145]
[1733334395253,1.634,3800.3,3800.2,2.63144]
[1733334395648,1.634,3800.3,3799.9,2.63158]
[1733334396180,8.22917869,3800.1,3799.4,2.63199]
[1733334396479,8.22917869,3799.7,3798.9,2.63233]
[1733334396683,8.22917869,3799.5,3798.9,2.63233]
[1733334396864,0.53366875,3799.7,3797.6,0.26580548]
[1733334397035,8.28936634,3799.4,3799.0,2.63225]
[1733334397236,0.06018786,3799.3,3799.0,2.63225]
[1733334397441,8.22917869,3799.2,3796.4,1.9192469]
[1733334397640,0.88912451,3799.3,3798.6,2.63253]
[1733334397641,8.22917869,3799.1,3798.6,2.63253]
[1733334398030,8.22917869,3799.1,3798.7,2.63247]
[1733334398234,8.22917869,3799.1,3798.5,2.63261]
[1733334398436,8.22917869,3799.1,3797.4,2.63331]
[1733334398673,0.91183032,3799.0,3797.5,3.263331]
[1733334398873,0.91183032,3799.0,3798.4,2.63261]
[1733334399073,8.22917869,3798.8,3797.5,3.263331]
[1733334399296,8.22917869,3798.8,3797.8,2.63304]
[1733334399494,8.22917869,3798.4,3796.5,2.634]
[1733334399695,8.22917869,3798.4,3797.9,2.63301]
[1733334400200,8.22917869,3798.1,3797.5,2.6333]
[1733334400358,9.83817869,3798.1,3797.6,2.63323]